[Event "FIDE Women's Grand Swiss 2023"]
[Site "Villa Marina, Douglas, Isle of Man, Isle Of Man"]
[Date "2023.11.03"]
[Round "9.22"]
[White "Kanyamarala, Trisha"]
[Black "Vantika, Agrawal"]
[Result "0-1"]
[TimeControl "40/90 + 30 + 30s/move"]
[WhiteFideId "45004722"]
[BlackFideId "25050389"]
[WhiteElo "2184"]
[BlackElo "2435"]

1. d4 {[%clk 01:30:53]} {[%emt 00:00:06]} Nf6 {[%clk 01:30:48]} {[%emt
00:00:12]} 2. c4 {[%clk 01:31:09]} {[%emt 00:00:15]} g6 {[%clk 01:31:12]}
{[%emt 00:00:05]} 3. Nc3 {[%clk 01:31:30]} {[%emt 00:00:09]} Bg7 {[%clk
01:31:36]} {[%emt 00:00:06]} 4. e4 {[%clk 01:31:49]} {[%emt 00:00:11]} d6
{[%clk 01:31:53]} {[%emt 00:00:14]} 5. Nge2 {[%clk 01:32:10]} {[%emt 00:00:09]}
O-O {[%clk 01:31:00]} {[%emt 00:01:23]} 6. Ng3 {[%clk 01:32:30]} {[%emt
00:00:09]} Nbd7 {[%clk 01:15:14]} {[%emt 00:16:16]} 7. Be2 {[%clk 01:32:21]}
{[%emt 00:00:39]} a6 {[%clk 01:12:52]} {[%emt 00:02:53]} 8. Be3 {[%clk
01:24:51]} {[%emt 00:08:00]} c6 {[%clk 01:09:31]} {[%emt 00:03:51]} 9. f4
{[%clk 01:14:03]} {[%emt 00:11:17]} e5 {[%clk 00:51:34]} {[%emt 00:18:28]} 10.
dxe5 {[%clk 01:08:39]} {[%emt 00:05:54]} dxe5 {[%clk 00:51:50]} {[%emt
00:00:14]} 11. f5 {[%clk 01:08:14]} {[%emt 00:00:55]} Qe7 {[%clk 00:50:09]}
{[%emt 00:02:11]} 12. O-O {[%clk 01:07:06]} {[%emt 00:01:37]} b5 {[%clk
00:49:44]} {[%emt 00:00:56]} 13. h3 {[%clk 01:01:51]} {[%emt 00:05:45]} Bb7
{[%clk 00:39:12]} {[%emt 00:11:02]} 14. Qe1 {[%clk 00:56:53]} {[%emt 00:05:28]}
b4 {[%clk 00:34:51]} {[%emt 00:04:51]} 15. Nd1 {[%clk 00:52:25]} {[%emt
00:04:58]} a5 {[%clk 00:34:31]} {[%emt 00:00:51]} 16. Qf2 {[%clk 00:47:32]}
{[%emt 00:05:21]} Ba6 {[%clk 00:30:29]} {[%emt 00:04:32]} 17. b3 {[%clk
00:46:14]} {[%emt 00:01:48]} Rfd8 {[%clk 00:29:11]} {[%emt 00:01:48]} 18. Nb2
{[%clk 00:45:05]} {[%emt 00:01:39]} c5 {[%clk 00:21:44]} {[%emt 00:07:58]} 19.
Na4 {[%clk 00:35:03]} {[%emt 00:10:32]} Rdc8 {[%clk 00:21:26]} {[%emt
00:00:48]} 20. Rad1 {[%clk 00:34:14]} {[%emt 00:01:18]} h6 {[%clk 00:10:20]}
{[%emt 00:11:36]} 21. h4 {[%clk 00:30:55]} {[%emt 00:03:50]} Bb7 {[%clk
00:10:09]} {[%emt 00:00:41]} 22. Bf3 {[%clk 00:29:55]} {[%emt 00:01:29]} h5
{[%clk 00:06:24]} {[%emt 00:04:16]} 23. Bg5 {[%clk 00:26:15]} {[%emt 00:04:10]}
Qe8 {[%clk 00:06:23]} {[%emt 00:00:31]} 24. fxg6 {[%clk 00:24:09]} {[%emt
00:02:36]} fxg6 {[%clk 00:06:35]} {[%emt 00:00:18]} 25. Rd6 {[%clk 00:20:51]}
{[%emt 00:03:47]} Ra6 {[%clk 00:04:59]} {[%emt 00:02:06]} 26. Rfd1 {[%clk
00:19:34]} {[%emt 00:01:47]} Rxd6 {[%clk 00:05:09]} {[%emt 00:00:21]} 27. Rxd6
{[%clk 00:20:02]} {[%emt 00:00:02]} Nh7 {[%clk 00:02:49]} {[%emt 00:02:50]} 28.
Qd2 {[%clk 00:16:44]} {[%emt 00:03:47]} Bc6 {[%clk 00:00:40]} {[%emt 00:02:40]}
29. Nb2 {[%clk 00:13:16]} {[%emt 00:03:58]} Bf8 {[%clk 00:00:52]} {[%emt
00:00:17]} 30. Rd3 {[%clk 00:12:11]} {[%emt 00:01:35]} Ndf6 {[%clk 00:00:37]}
{[%emt 00:00:46]} 31. Bh6 {[%clk 00:10:40]} {[%emt 00:02:01]} Be7 {[%clk
00:00:35]} {[%emt 00:00:31]} 32. Nd1 {[%clk 00:09:35]} {[%emt 00:01:35]} Kh8
{[%clk 00:00:33]} {[%emt 00:00:33]} 33. Be3 {[%clk 00:06:33]} {[%emt 00:03:32]}
Nf8 {[%clk 00:00:44]} {[%emt 00:00:18]} 34. Qb2 {[%clk 00:06:27]} {[%emt
00:00:37]} N6d7 {[%clk 00:00:48]} {[%emt 00:00:26]} 35. Qe2 {[%clk 00:04:35]}
{[%emt 00:02:21]} Bxh4 {[%clk 00:00:34]} {[%emt 00:00:45]} 36. Nf1 {[%clk
00:02:42]} {[%emt 00:02:23]} Ne6 {[%clk 00:00:37]} {[%emt 00:00:26]} 37. g4
{[%clk 00:03:00]} {[%emt 00:00:12]} Nd4 {[%clk 00:00:52]} {[%emt 00:00:16]} 38.
Qg2 {[%clk 00:02:29]} {[%emt 00:01:00]} Qf7 {[%clk 00:00:37]} {[%emt 00:00:45]}
39. Bc1 {[%clk 00:01:19]} {[%emt 00:01:40]} Rf8 {[%clk 00:00:45]} {[%emt
00:00:22]} 40. Nh2 {[%clk 00:01:31]} {[%emt 00:00:18]} Qf6 {[%clk 00:00:33]}
{[%emt 00:00:42]} 41. Qh3 {[%clk 00:20:53]} {[%emt 00:11:08]} Kg7 {[%clk
00:17:51]} {[%emt 00:13:11]} 42. gxh5 {[%clk 00:18:27]} {[%emt 00:02:57]} Bg5
{[%clk 00:17:33]} {[%emt 00:00:49]} 43. h6+ {[%clk 00:12:59]} {[%emt 00:05:58]}
Kh7 {[%clk 00:16:54]} {[%emt 00:01:08]} 44. Bb2 {[%clk 00:12:57]} {[%emt
00:00:33]} Rf7 {[%clk 00:11:08]} {[%emt 00:06:15]} 45. Nf2 {[%clk 00:12:17]}
{[%emt 00:01:10]} Nf8 {[%clk 00:09:00]} {[%emt 00:02:39]} 46. Qg2 {[%clk
00:07:30]} {[%emt 00:05:16]} Nfe6 {[%clk 00:07:39]} {[%emt 00:01:51]} 47. Nh3
{[%clk 00:06:31]} {[%emt 00:01:28]} Bf4 {[%clk 00:03:56]} {[%emt 00:04:14]} 48.
Ng4 {[%clk 00:06:17]} {[%emt 00:00:45]} Qh4 {[%clk 00:04:15]} {[%emt 00:00:11]}
49. Ngf2 {[%clk 00:04:46]} {[%emt 00:02:00]} Bg3 {[%clk 00:03:26]} {[%emt
00:01:18]} 50. Nh1 {[%clk 00:04:36]} {[%emt 00:00:41]} Be1 {[%clk 00:03:02]}
{[%emt 00:00:55]} 51. Bxd4 {[%clk 00:02:11]} {[%emt 00:02:55]} cxd4 {[%clk
00:03:04]} {[%emt 00:00:28]} 52. Bg4 {[%clk 00:01:44]} {[%emt 00:00:57]} Nf4
{[%clk 00:03:00]} {[%emt 00:00:34]} 53. Nxf4 {[%clk 00:01:07]} {[%emt
00:01:07]} Rxf4 {[%clk 00:03:25]} {[%emt 00:00:04]} 54. Bf3 {[%clk 00:01:15]}
{[%emt 00:00:22]} Bxe4 {[%clk 00:02:50]} {[%emt 00:01:06]} 55. Bxe4 {[%clk
00:01:37]} {[%emt 00:00:07]} Rg4 {[%clk 00:01:43]} {[%emt 00:01:37]} 56. Ng3
{[%clk 00:01:48]} {[%emt 00:00:19]} Bxg3 {[%clk 00:02:08]} {[%emt 00:00:05]} 57.
Kf1 {[%clk 00:01:19]} {[%emt 00:00:59]} Bf4 {[%clk 00:00:49]} {[%emt 00:01:50]}
58. Rh3 {[%clk 00:00:50]} {[%emt 00:00:59]} Qg5 {[%clk 00:01:06]} {[%emt
00:00:12]} 59. Qf2 {[%clk 00:00:40]} {[%emt 00:00:40]} Qe7 {[%clk 00:01:01]}
{[%emt 00:00:35]} 60. Qf3 {[%clk 00:00:52]} {[%emt 00:00:19]} Rg5 {[%clk
00:01:15]} {[%emt 00:00:16]} 61. Bd3 {[%clk 00:00:43]} {[%emt 00:00:39]} Be3
{[%clk 00:01:03]} {[%emt 00:00:41]} 62. Ke2 {[%clk 00:00:52]} {[%emt 00:00:21]}
Rg1 {[%clk 00:00:48]} {[%emt 00:00:45]} 63. Qe4 {[%clk 00:00:37]} {[%emt
00:00:45]} Bxh6 {[%clk 00:00:36]} {[%emt 00:00:43]} 64. Rf3 {[%clk 00:00:32]}
{[%emt 00:00:35]} Be3 {[%clk 00:00:34]} {[%emt 00:00:31]} 65. Qd5 {[%clk
00:00:43]} {[%emt 00:00:19]} Bf4 {[%clk 00:00:45]} {[%emt 00:00:19]} 66. c5
{[%clk 00:00:55]} {[%emt 00:00:19]} Kg7 {[%clk 00:00:39]} {[%emt 00:00:36]} 67.
Bc4 {[%clk 00:01:18]} {[%emt 00:00:07]} Rg2+ {[%clk 00:00:45]} {[%emt
00:00:24]} 68. Kf1 {[%clk 00:01:40]} {[%emt 00:00:08]} Rh2 {[%clk 00:00:45]}
{[%emt 00:00:30]} 69. Qg8+ {[%clk 00:01:39]} {[%emt 00:00:30]} Kf6 {[%clk
00:00:50]} {[%emt 00:00:25]} 70. Bd3 {[%clk 00:01:24]} {[%emt 00:00:46]} Rh1+
{[%clk 00:00:47]} {[%emt 00:00:32]} 71. Kg2 {[%clk 00:01:12]} {[%emt 00:00:43]}
Rh2+ {[%clk 00:01:06]} {[%emt 00:00:11]} 72. Kf1 {[%clk 00:01:30]} {[%emt
00:00:11]} Rh6 {[%clk 00:01:18]} {[%emt 00:00:18]} 73. c6 {[%clk 00:01:06]}
{[%emt 00:00:55]} Kg5 {[%clk 00:00:57]} {[%emt 00:00:50]} 74. Be4 {[%clk
00:01:01]} {[%emt 00:00:36]} Qd6 {[%clk 00:00:35]} {[%emt 00:00:52]} 75. Qf7
{[%clk 00:00:59]} {[%emt 00:00:32]} Qc5 {[%clk 00:00:43]} {[%emt 00:00:21]} 76.
Qc4 {[%clk 00:00:33]} {[%emt 00:00:56]} Rh1+ {[%clk 00:00:35]} {[%emt
00:00:38]} 77. Kg2 {[%clk 00:00:57]} {[%emt 00:00:06]} Rh2+ {[%clk 00:00:47]}
{[%emt 00:00:18]} 78. Kf1 {[%clk 00:01:16]} {[%emt 00:00:11]} Qxc4+ {[%clk
00:00:37]} {[%emt 00:00:41]} 79. bxc4 {[%clk 00:01:43]} {[%emt 00:00:03]} Rh7
{[%clk 00:00:39]} {[%emt 00:00:24]} 80. Rf2 {[%clk 00:01:45]} {[%emt 00:00:32]}
Kf6 {[%clk 00:00:34]} {[%emt 00:00:34]} 81. Rg2 {[%clk 00:02:05]} {[%emt
00:00:10]} Bg5 {[%clk 00:00:41]} {[%emt 00:00:23]} 82. Rf2+ {[%clk 00:02:12]}
{[%emt 00:00:23]} Bf4 {[%clk 00:00:35]} {[%emt 00:00:36]} 83. Rg2 {[%clk
00:02:36]} {[%emt 00:00:07]} Rg7 {[%clk 00:00:35]} {[%emt 00:00:30]} 84. Rxg6+
{[%clk 00:01:09]} {[%emt 00:01:57]} Rxg6 {[%clk 00:00:56]} {[%emt 00:00:08]} 85.
Bxg6 {[%clk 00:01:36]} {[%emt 00:00:03]} Ke7 {[%clk 00:00:48]} {[%emt
00:00:38]} 86. Ke2 {[%clk 00:00:39]} {[%emt 00:01:27]} Kd6 {[%clk 00:01:09]}
{[%emt 00:00:09]} 87. Be4 {[%clk 00:00:37]} {[%emt 00:00:32]} a4 {[%clk
00:01:26]} {[%emt 00:00:14]} 88. c5+ {[%clk 00:00:33]} {[%emt 00:00:34]} Kc7
{[%clk 00:01:48]} {[%emt 00:00:07]} 89. Kd3 {[%clk 00:00:35]} {[%emt 00:00:27]}
b3 {[%clk 00:00:36]} {[%emt 00:01:42]} 90. axb3 {[%clk 00:01:00]} {[%emt
00:00:06]} a3 {[%clk 00:00:41]} {[%emt 00:00:24]} 91. Kc2 {[%clk 00:01:06]}
{[%emt 00:00:24]} Bd2 {[%clk 00:00:55]} {[%emt 00:00:16]} 92. Kb1 {[%clk
00:00:33]} {[%emt 00:01:04]} Bb4 {[%clk 00:01:13]} {[%emt 00:00:12]} 93. Ka2
{[%clk 00:00:34]} {[%emt 00:00:29]} Bxc5 {[%clk 00:01:39]} {[%emt 00:00:04]} 94.
b4 {[%clk 00:00:35]} {[%emt 00:00:29]} Bxb4 {[%clk 00:02:03]} {[%emt 00:00:05]}
95. Kb3 {[%clk 00:01:01]} {[%emt 00:00:04]} Bd6 {[%clk 00:02:16]} {[%emt
00:00:18]} 96. Kc2 {[%clk 00:00:38]} {[%emt 00:00:53]} Kb6 {[%clk 00:02:35]}
{[%emt 00:00:11]} 97. Kb3 {[%clk 00:00:32]} {[%emt 00:00:36]} Kb5 {[%clk
00:02:23]} {[%emt 00:00:41]} 98. Bd5 {[%clk 00:00:35]} {[%emt 00:00:27]} Kc5
{[%clk 00:01:50]} {[%emt 00:01:04]} 99. Be4 {[%clk 00:01:01]} {[%emt 00:00:04]}
Kb6 {[%clk 00:01:16]} {[%emt 00:01:04]} 100. Bd5 {[%clk 00:00:59]} {[%emt
00:00:31]} d3 {[%clk 00:01:24]} {[%emt 00:00:22]} 101. Be4 {[%clk 00:00:32]}
{[%emt 00:00:57]} d2 {[%clk 00:01:49]} {[%emt 00:00:05]} 102. Bf3 {[%clk
00:00:52]} {[%emt 00:00:11]} e4 {[%clk 00:02:10]} {[%emt 00:00:09]} 103. Be2
{[%clk 00:01:12]} {[%emt 00:00:09]} Kxc6 {[%clk 00:01:59]} {[%emt 00:00:42]}
104. Kc2 {[%clk 00:01:27]} {[%emt 00:00:14]} Kc5 {[%clk 00:02:05]} {[%emt
00:00:24]} 105. Bh5 {[%clk 00:01:38]} {[%emt 00:00:19]} Kd4 {[%clk 00:01:58]}
{[%emt 00:00:38]} 106. Bf7 {[%clk 00:01:53]} {[%emt 00:00:14]} Ke3 {[%clk
00:02:02]} {[%emt 00:00:27]} 107. Kd1 {[%clk 00:02:12]} {[%emt 00:00:11]} Kd3
{[%clk 00:02:15]} {[%emt 00:00:17]} 108. Be6 {[%clk 00:01:30]} {[%emt
00:01:11]} e3 {[%clk 00:02:26]} {[%emt 00:00:18]} 109. Bf5+ {[%clk 00:01:45]}
{[%emt 00:00:16]} Kc3 {[%clk 00:02:53]} {[%emt 00:00:04]} 110. Be6 {[%clk
00:01:58]} {[%emt 00:00:16]} Kb2 {[%clk 00:03:19]} {[%emt 00:00:04]} 111. Ke2
{[%clk 00:02:17]} {[%emt 00:00:11]} a2 {[%clk 00:03:42]} {[%emt 00:00:08]} 0-1

[Event "FIDE Women's Grand Swiss 2023"]
[Site "Villa Marina, Douglas, Isle of Man, Isle Of Man"]
[Date "2023.11.03"]
[Round "9.23"]
[White "Gomez Barrera, Javiera Belen"]
[Black "Sandu, Mihaela"]
[Result "0-1"]
[TimeControl "40/90 + 30 + 30s/move"]
[WhiteFideId "3418723"]
[BlackFideId "1204327"]
[WhiteElo "2266"]
[BlackElo "2298"]

1. e4 {[%clk 01:30:57]} {[%emt 00:00:02]} e5 {[%clk 01:30:56]} {[%emt
00:00:04]} 2. Nf3 {[%clk 01:31:23]} {[%emt 00:00:04]} Nc6 {[%clk 01:31:23]}
{[%emt 00:00:03]} 3. Bc4 {[%clk 01:31:49]} {[%emt 00:00:04]} Bc5 {[%clk
01:31:49]} {[%emt 00:00:04]} 4. d3 {[%clk 01:32:15]} {[%emt 00:00:04]} Nf6
{[%clk 01:32:00]} {[%emt 00:00:19]} 5. Bg5 {[%clk 01:32:41]} {[%emt 00:00:04]}
h6 {[%clk 01:32:11]} {[%emt 00:00:19]} 6. Bh4 {[%clk 01:33:10]} {[%emt
00:00:02]} Be7 {[%clk 01:24:39]} {[%emt 00:08:01]} 7. Bg3 {[%clk 01:33:18]}
{[%emt 00:00:22]} d6 {[%clk 01:24:35]} {[%emt 00:00:34]} 8. c3 {[%clk
01:33:30]} {[%emt 00:00:19]} O-O {[%clk 01:18:44]} {[%emt 00:06:20]} 9. a4
{[%clk 01:33:44]} {[%emt 00:00:16]} a5 {[%clk 00:53:47]} {[%emt 00:25:27]} 10.
Nbd2 {[%clk 01:32:02]} {[%emt 00:02:12]} Kh8 {[%clk 00:53:11]} {[%emt
00:01:05]} 11. Qb3 {[%clk 01:13:34]} {[%emt 00:18:59]} Qe8 {[%clk 00:51:14]}
{[%emt 00:02:27]} 12. h3 {[%clk 01:08:10]} {[%emt 00:05:54]} Nh5 {[%clk
00:48:39]} {[%emt 00:03:05]} 13. Bh2 {[%clk 01:08:03]} {[%emt 00:00:37]} Nf4
{[%clk 00:48:29]} {[%emt 00:00:40]} 14. Bxf4 {[%clk 01:05:19]} {[%emt
00:03:15]} exf4 {[%clk 00:48:55]} {[%emt 00:00:04]} 15. O-O {[%clk 01:05:44]}
{[%emt 00:00:04]} g5 {[%clk 00:41:31]} {[%emt 00:07:54]} 16. d4 {[%clk
01:03:42]} {[%emt 00:02:32]} h5 {[%clk 00:40:25]} {[%emt 00:01:36]} 17. e5
{[%clk 00:21:43]} {[%emt 00:42:29]} g4 {[%clk 00:36:45]} {[%emt 00:04:10]} 18.
exd6 {[%clk 00:21:18]} {[%emt 00:00:56]} cxd6 {[%clk 00:36:31]} {[%emt
00:00:43]} 19. hxg4 {[%clk 00:21:35]} {[%emt 00:00:13]} hxg4 {[%clk 00:35:39]}
{[%emt 00:01:22]} 20. Nh2 {[%clk 00:22:04]} {[%emt 00:00:01]} f5 {[%clk
00:24:18]} {[%emt 00:11:51]} 21. Rfe1 {[%clk 00:10:35]} {[%emt 00:12:00]} Qh5
{[%clk 00:24:36]} {[%emt 00:00:11]} 22. Be6 {[%clk 00:07:38]} {[%emt 00:03:28]}
Bh4 {[%clk 00:24:36]} {[%emt 00:00:29]} 23. Ndf1 {[%clk 00:06:48]} {[%emt
00:01:20]} f3 {[%clk 00:06:05]} {[%emt 00:19:01]} 24. Bxc8 {[%clk 00:04:57]}
{[%emt 00:02:21]} Raxc8 {[%clk 00:05:39]} {[%emt 00:00:56]} 25. Qd5 {[%clk
00:04:41]} {[%emt 00:00:46]} Rfe8 {[%clk 00:04:46]} {[%emt 00:01:23]} 26. Rxe8+
{[%clk 00:01:58]} {[%emt 00:03:14]} Rxe8 {[%clk 00:05:05]} {[%emt 00:00:11]} 27.
gxf3 {[%clk 00:01:38]} {[%emt 00:00:49]} Bxf2+ {[%clk 00:03:52]} {[%emt
00:01:43]} 28. Kxf2 {[%clk 00:02:07]} {[%emt 00:00:02]} g3+ {[%clk 00:03:16]}
{[%emt 00:01:05]} 29. Kg1 {[%clk 00:02:02]} {[%emt 00:00:35]} gxh2+ {[%clk
00:02:38]} {[%emt 00:01:08]} 30. Kh1 {[%clk 00:01:51]} {[%emt 00:00:41]} Qh3
{[%clk 00:02:11]} {[%emt 00:00:56]} 31. f4 {[%clk 00:00:35]} {[%emt 00:01:47]}
Re2 {[%clk 00:02:30]} {[%emt 00:00:10]} 32. c4 {[%clk 00:00:35]} {[%emt
00:00:32]} Qg4 {[%clk 00:02:19]} {[%emt 00:00:40]} 33. Nxh2 {[%clk 00:00:37]}
{[%emt 00:00:28]} Qh3 {[%clk 00:02:20]} {[%emt 00:00:29]} 0-1

[Event "FIDE Women's Grand Swiss 2023"]
[Site "Villa Marina, Douglas, Isle of Man, Isle Of Man"]
[Date "2023.11.03"]
[Round "9.24"]
[White "Arakhamia-Grant, Ketevan"]
[Black "Lee, Alice"]
[Result "0-1"]
[TimeControl "40/90 + 30 + 30s/move"]
[WhiteFideId "13600168"]
[BlackFideId "30941822"]
[WhiteElo "2297"]
[BlackElo "2388"]

1. e4 {[%clk 01:30:58]} {[%emt 00:00:02]} e5 {[%clk 01:30:57]} {[%emt
00:00:03]} 2. Nf3 {[%clk 01:31:19]} {[%emt 00:00:09]} Nf6 {[%clk 01:31:23]}
{[%emt 00:00:04]} 3. Nc3 {[%clk 01:31:17]} {[%emt 00:00:31]} Nc6 {[%clk
01:31:48]} {[%emt 00:00:05]} 4. d4 {[%clk 01:31:33]} {[%emt 00:00:15]} exd4
{[%clk 01:32:13]} {[%emt 00:00:05]} 5. Nxd4 {[%clk 01:31:59]} {[%emt 00:00:04]}
Bb4 {[%clk 01:32:37]} {[%emt 00:00:06]} 6. Nxc6 {[%clk 01:32:14]} {[%emt
00:00:14]} bxc6 {[%clk 01:32:59]} {[%emt 00:00:08]} 7. Bd3 {[%clk 01:32:39]}
{[%emt 00:00:05]} d5 {[%clk 01:33:23]} {[%emt 00:00:07]} 8. exd5 {[%clk
01:32:58]} {[%emt 00:00:11]} O-O {[%clk 01:33:45]} {[%emt 00:00:07]} 9. O-O
{[%clk 01:33:16]} {[%emt 00:00:12]} Bg4 {[%clk 01:34:08]} {[%emt 00:00:07]} 10.
f3 {[%clk 01:33:29]} {[%emt 00:00:17]} Bh5 {[%clk 01:34:32]} {[%emt 00:00:06]}
11. Bg5 {[%clk 01:32:12]} {[%emt 00:01:47]} Qd6 {[%clk 01:34:55]} {[%emt
00:00:07]} 12. Kh1 {[%clk 01:25:56]} {[%emt 00:06:46]} Bxc3 {[%clk 01:35:00]}
{[%emt 00:00:26]} 13. bxc3 {[%clk 01:26:04]} {[%emt 00:00:22]} cxd5 {[%clk
01:35:22]} {[%emt 00:00:08]} 14. Qd2 {[%clk 01:22:13]} {[%emt 00:04:21]} Bg6
{[%clk 01:31:17]} {[%emt 00:04:34]} 15. Rab1 {[%clk 01:20:06]} {[%emt
00:02:38]} a6 {[%emt 00:38:52]} 16. Qf4 {[%clk 00:47:23]} Qxf4 {[%clk
01:19:30]} {[%emt 00:07:07]} 17. Bxf4 {[%clk 00:47:48]} {[%emt 00:00:06]} Bxd3
{[%clk 01:14:34]} {[%emt 00:05:26]} 18. cxd3 {[%clk 00:48:12]} {[%emt
00:00:06]} c5 {[%clk 01:14:37]} {[%emt 00:00:27]} 19. Bd6 {[%clk 00:44:28]}
{[%emt 00:04:13]} Rfc8 {[%clk 01:14:51]} {[%emt 00:00:16]} 20. Rfe1 {[%clk
00:29:41]} {[%emt 00:15:18]} Rc6 {[%clk 01:14:02]} {[%emt 00:01:19]} 21. Bb8
{[%clk 00:23:56]} {[%emt 00:06:15]} Rc8 {[%clk 01:11:58]} {[%emt 00:02:34]} 22.
Bd6 {[%clk 00:23:38]} {[%emt 00:00:49]} Rc6 {[%clk 01:08:40]} {[%emt 00:03:48]}
23. Bb8 {[%clk 00:24:03]} {[%emt 00:00:05]} Rc8 {[%clk 01:07:58]} {[%emt
00:01:11]} 24. Be5 {[%clk 00:24:26]} {[%emt 00:00:07]} Re8 {[%clk 01:06:54]}
{[%emt 00:01:33]} 25. Kg1 {[%clk 00:19:49]} {[%emt 00:05:07]} h6 {[%clk
01:03:47]} {[%emt 00:03:37]} 26. Bd6 {[%clk 00:18:11]} {[%emt 00:02:08]} c4
{[%clk 01:02:31]} {[%emt 00:01:46]} 27. dxc4 {[%clk 00:03:41]} {[%emt
00:15:00]} dxc4 {[%clk 01:02:08]} {[%emt 00:00:53]} 28. Kf2 {[%clk 00:04:07]}
{[%emt 00:00:04]} Nd5 {[%clk 01:01:40]} {[%emt 00:00:58]} 29. Be5 {[%clk
00:01:59]} {[%emt 00:02:38]} f6 {[%clk 01:01:15]} {[%emt 00:00:54]} 30. Bd4
{[%clk 00:02:22]} {[%emt 00:00:08]} Nf4 {[%clk 01:01:40]} {[%emt 00:00:05]} 31.
Re4 {[%clk 00:02:13]} {[%emt 00:00:39]} Nd3+ {[%clk 01:01:11]} {[%emt
00:00:59]} 32. Kg3 {[%clk 00:01:27]} {[%emt 00:01:17]} Reb8 {[%clk 00:49:07]}
{[%emt 00:12:33]} 33. Rxb8+ {[%clk 00:00:37]} {[%emt 00:01:19]} Rxb8 {[%clk
00:49:36]} {[%emt 00:00:02]} 34. Re2 {[%clk 00:00:35]} {[%emt 00:00:32]} Kf7
{[%emt 00:01:34]} 35. h4 {[%clk 00:00:55]} a5 {[%clk 00:47:39]} {[%emt
00:01:33]} 36. f4 {[%clk 00:00:33]} {[%emt 00:00:52]} a4 {[%clk 00:39:26]}
{[%emt 00:08:43]} 37. Kf3 {[%clk 00:00:44]} {[%emt 00:00:19]} a3 {[%clk
00:37:53]} {[%emt 00:02:04]} 38. g3 {[%clk 00:00:45]} {[%emt 00:00:29]} Rb2
{[%clk 00:37:09]} {[%emt 00:01:13]} 39. Be3 {[%clk 00:00:51]} {[%emt 00:00:24]}
f5 {[%clk 00:35:31]} {[%emt 00:02:08]} 40. h5 {[%clk 00:00:58]} {[%emt
00:00:22]} Rb1 {[%clk 00:32:20]} {[%emt 00:03:41]} 41. Ba7 {[%clk 00:23:09]}
{[%emt 00:08:19]} Rc1 {[%clk 00:55:38]} {[%emt 00:07:12]} 42. Bd4 {[%clk
00:17:48]} {[%emt 00:05:51]} Ra1 {[%clk 00:53:14]} {[%emt 00:02:55]} 43. Bb6
{[%clk 00:15:59]} {[%emt 00:02:20]} Rb1 {[%clk 00:41:39]} {[%emt 00:12:04]} 44.
Bc7 {[%clk 00:11:45]} {[%emt 00:04:44]} Rc1 {[%clk 00:40:53]} {[%emt 00:01:16]}
45. Ba5 {[%clk 00:05:46]} {[%emt 00:06:28]} Rd1 {[%clk 00:40:42]} {[%emt
00:00:41]} 46. Ke3 {[%clk 00:05:03]} {[%emt 00:01:14]} Nc1 {[%clk 00:41:06]}
{[%emt 00:00:06]} 47. Rd2 {[%clk 00:04:02]} {[%emt 00:01:31]} Rxd2 {[%clk
00:41:30]} {[%emt 00:00:05]} 48. Kxd2 {[%clk 00:04:29]} {[%emt 00:00:04]} Nb3+
{[%clk 00:41:55]} {[%emt 00:00:05]} 0-1